Cogmind - Beta 13 @@@ ROGUE MODE // 2024.04.24 @ 22:31:03 Player: Millea Result: Destroyed by D-53 Grenadier with Mini Grenade Launcher Performance ------------- Evolutions (0) 0 Regions Visited (4) 800 Robots Destroyed (12) 60 Value Destroyed (275) 275 Prototype IDs (23) 460 Alien Tech Used (0) 0 Bonus (173) 173 TOTAL SCORE: 1768 Bonus ------- Follower Combat Kills 35 Aligned with FarCom 300 Friendly Fire -162 Cogmind --------- Core Integrity 0/250 Matter 284/300 Energy 100/100 System Corruption 0% Temperature Cool (0) Movement Flying (40) Location -9/Mines Parts ------- > --- POWER (1) -------- (None) > --- PROPULSION (2) --- Flight Unit > --- UTILITY (2) ------ (None) > --- WEAPON (2) ------- (None) > --- INVENTORY (5) ---- Flight Unit Small Storage Unit Large Matter Pod (150) 0b10 Alert Chip Peak State ------------ > --- POWER ------------ Light Nuclear Core > --- PROPULSION ------- Light Treads Light Treads > --- UTILITY ---------- Heat Sink Medium Storage Unit > --- WEAPON ----------- EM Pulse Gun Light Assault Rifle > --- INVENTORY -------- Ion Engine Flight Unit Flight Unit Flight Unit Small Storage Unit Large Matter Pod 0b10 Alert Chip [Rating: 10] Favorites ----------- Power Ion Engine Engine Ion Engine Power Core Light Nuclear Core Propulsion Light Treads Treads Light Treads Flight Unit Flight Unit Utility Heat Sink Device Heat Sink Storage Medium Storage Unit Weapon EM Pulse Gun Energy Gun EM Pulse Gun Ballistic Gun Light Assault Rifle Build | -11 -10 -10 -10 -9 ------- Run | Yrd Mat Min Exi Min Slots Evolved . | . . . . . Power . | . . . . . Propulsion . | . . . . . Utility . | . . . . . Weapon . | . . . . . Parts Attached 14 | 7 3 2 . 2 Power 2 | 1 . 1 . . Engine 1 | 1 . . . . Core 1 | . . 1 . . Reactor . | . . . . . Propulsion 4 | 2 . . . 2 Treads 2 | 2 . . . . Leg . | . . . . . Wheel . | . . . . . Hover . | . . . . . Flight 2 | . . . . 2 Utility 4 | 1 3 . . . Device 1 | . 1 . . . Storage 3 | 1 2 . . . Processor . | . . . . . Hackware . | . . . . . Protection . | . . . . . Artifact . | . . . . . Weapon 4 | 3 . 1 . . Energy Gun 2 | 2 . . . . Energy Cannon . | . . . . . Ballistic Gun 2 | 1 . 1 . . Ballistic Cannon . | . . . . . Launcher . | . . . . . Special Weapon . | . . . . . Impact Weapon . | . . . . . Slashing Weapon . | . . . . . Piercing Weapon . | . . . . . Special Melee Weapon . | . . . . . Unidentified Prototypes . | . . . . . Parts Lost 2 | . . 1 . 1 Power . | . . . . . Propulsion 1 | . . . . 1 Utility . | . . . . . Weapon 1 | . . 1 . . Highest Loss Streak 1 | . . 1 . 1 To Critical Strikes . | . . . . . Average Slot Usage (%) 97 | . 99 100 100 37 Engine 9 | . 14 12 . . Core 3 | . . 1 14 2 Treads 27 | . 28 28 28 4 Device 12 | . 10 14 14 2 Storage 14 | . 16 14 14 2 Energy Gun 23 | . 28 26 14 2 Ballistic Gun 4 | . . 1 14 2 Naked Turns . | . . . . . Heaviest Build 20 | 14 20 20 19 19 Greatest Support 40 | 40 40 40 40 40 Greatest Overweight (x) . | . . . . . Average Overweight (x) . | . . . . . Largest Inventory Capacity 10 | 8 10 10 10 10 Average Capacity 9 | 6 8 10 10 6 Most Carried 8 | 6 8 7 7 8 Average Carried 6 | 3 6 6 6 4 Final Capacity 10 | 8 10 10 10 5 Final Carried 7 | 6 7 6 7 4 Class Distribution -------------------- 100% | Mutant Dominant Class ---------------- Mutant | -10/Materials Mutant | -10/Mines Mutant | -10/Exiles Mutant | -9/Mines Resources | -11 -10 -10 -10 -9 ----------- Run | Yrd Mat Min Exi Min Matter Collected 471 | 202 163 106 . . Remotely . | . . . . . Salvage Created 457 | . 175 282 . . Parts 28 | . 18 10 . . Haulers Intercepted 1 | . 1 . . . Recyclers Shooed . | . . . . . Parts Field Recycled . | . . . . . Retrieved Matter . | . . . . . Parts Self-Destructed . | . . . . . Prevented . | . . . . . Kills | -11 -10 -10 -10 -9 ------- Run | Yrd Mat Min Exi Min Combat Hostiles Destroyed 9 | . 4 5 . . Guns 7 | . 4 3 . . AOE 2 | . . 2 . . Classes Destroyed 4 | . 4 . . . Hauler 1 | . 1 . . . Watcher 1 | . 1 . . . Swarmer 3 | . 3 . . . Grunt 6 | . 1 5 . . Thug 1 | . . 1 . . Best Kill Streak 3 | . 3 2 . . Combat Bots Only 3 | . 3 2 . . Max Kills in Single Turn 2 | . 1 2 . . Gunslinging . | . . . . . Exploded 2 | . . 2 . . Melee . | . . . . . Uniques/NPCs Destroyed . | . . . . . Combat | -11 -10 -10 -10 -9 -------- Run | Yrd Mat Min Exi Min Hostile Shots Fired 56 | . 22 16 . 18 Missed 18 | . 5 3 . 10 Damage Taken 632 | . 151 290 . 191 Core 264 | . 30 69 . 165 Absorbed by Shields . | . . . . . Core Remaining (%) 100 | 100 . . . . Volleys Fired 33 | . 14 18 . 1 Largest 2 | . 2 2 . 2 Hottest 80 | . 80 80 . 60 Shots Fired 66 | . 28 36 . 2 Gun 66 | . 28 36 . 2 Cannon . | . . . . . Launcher . | . . . . . Special . | . . . . . Kinetic 8 | . . 7 . 1 Thermal . | . . . . . Explosive . | . . . . . Electromagnetic 58 | . 28 29 . 1 Robot Hit Streak 6 | . 2 6 . 2 Robot Miss Streak 5 | . 5 1 . 1 Penetration Max . | . . . . . Secondary Targets 1 | . 1 . . . Max Gunslinging Chain 1 | . 1 . . . Shots Hit Robots 35 | . 9 25 . 1 Core Hits 21 | . 6 14 . 1 Critical Kills . | . . . . . Critical Parts Destroyed . | . . . . . Critical Strikes . | . . . . . Melee Attacks . | . . . . . Impact . | . . . . . Slashing . | . . . . . Piercing . | . . . . . Sneak Attacks . | . . . . . Combat Hostiles . | . . . . . Follow-up Attacks . | . . . . . Damage Inflicted 686 | . 120 554 . 12 Guns 459 | . 120 327 . 12 Cannons . | . . . . . Explosions 217 | . . 217 . . Melee . | . . . . . Ramming 10 | . . 10 . . Kinetic 44 | . . 44 . . Thermal 217 | . . 217 . . Explosive . | . . . . . Electromagnetic 415 | . 120 283 . 12 Impact . | . . . . . Slashing . | . . . . . Piercing . | . . . . . Highest Corruption . | . . . . . Average Corruption . | . . . . . Corruption Purged . | . . . . . Corruption Blocked . | . . . . . Overload Shots . | . . . . . Overflow Damage . | . . . . . Projectiles . | . . . . . Explosions . | . . . . . Melee . | . . . . . Knockbacks . | . . . . . Impact . | . . . . . Kinetic . | . . . . . Secondary . | . . . . . Self-Inflicted Damage 49 | . . 49 . . Shots 1 | . . 1 . . Rammed 2 | . . 2 . . Targets Rammed 2 | . . 2 . . Kicked . | . . . . . Crushed . | . . . . . Highest Temperature 48 | . 48 15 . 4 Average Temperature 10 | . 26 6 . 3 Received Heat Transfer 170 | . 18 120 . 32 Siege Activations . | . . . . . Robots Corrupted . | . . . . . Combat Hostiles . | . . . . . Parts Fried . | . . . . . Impact Corruptions . | . . . . . Robots Melted . | . . . . . Combat Hostiles . | . . . . . Parts Melted 1 | . . 1 . . Heat Transferred 350 | . . 350 . . Parts Sabotaged . | . . . . . Parts Stolen . | . . . . . Parts Stripped . | . . . . . Power Chain Reactions 2 | . . 2 . . Alert | -11 -10 -10 -10 -9 ------- Run | Yrd Mat Min Exi Min Peak Influence 195 | . 195 130 . . Initial 75 | . . 75 . . Average 74 | . 118 63 . . Maximum Alert Level . | . . . . . Low Security (%) 100 | 100 100 100 . 100 Level 1 . | . . . . . Level 2 . | . . . . . Level 3 . | . . . . . Level 4 . | . . . . . Level 5 . | . . . . . High Security . | . . . . . Max Security . | . . . . . Squads Dispatched 3 | . 1 2 . . Investigation 1 | . 1 . . . Extermination . | . . . . . Reinforcement . | . . . . . Assault 2 | . . 2 . . Garrison . | . . . . . Intercept . | . . . . . Searches Triggered . | . . . . . Construction Impeded . | . . . . . Haulers Reinforced . | . . . . . Active Scanning Responses . | . . . . . Cargo Convoy Interrupts . | . . . . . Stealth | -11 -10 -10 -10 -9 --------- Run | Yrd Mat Min Exi Min Distress Signals 2 | . 2 . . . Communications Jammed . | . . . . . Distress Signals . | . . . . . Times Spotted 40 | . 7 11 . 22 Peak Tracking Total 19 | . 4 3 . 19 Tactical Retreats 1 | . . . . 1 Traps | -11 -10 -10 -10 -9 ------- Run | Yrd Mat Min Exi Min Traps Triggered . | . . . . . Indirectly . | . . . . . Trap Hack Attempts . | . . . . . Triggered . | . . . . . Disarmed . | . . . . . Reprogrammed . | . . . . . Reused . | . . . . . Traps Extracted . | . . . . . Installed . | . . . . . Triggered . | . . . . . Machines | -11 -10 -10 -10 -9 ---------- Run | Yrd Mat Min Exi Min Machines Disabled 1 | . 1 . . . Max in Single Turn 1 | . 1 . . . Machines Repaired . | . . . . . Machines Dismantled . | . . . . . Machines Sabotaged . | . . . . . Overloaded Fab Kills . | . . . . . Hacking | -11 -10 -10 -10 -9 --------- Run | Yrd Mat Min Exi Min Machines Accessed 4 | . 2 . 2 . Terminals 1 | . 1 . . . Fabricators . | . . . . . Repair Stations . | . . . . . Recycling Units 1 | . 1 . . . Scanalyzers . | . . . . . Garrison Access . | . . . . . Total Hacks 7 | . 5 . 2 . Successful 6 | . 4 . 2 . Failed 1 | . 1 . . . Catastrophic . | . . . . . Database Lockouts . | . . . . . Manual 6 | . 5 . 1 . Terminals 4 | . 4 . . . Fabricators . | . . . . . Repair Stations . | . . . . . Recycling Units 1 | . 1 . . . Scanalyzers . | . . . . . Garrison Access . | . . . . . Terminal Hacks 5 | . 3 . 2 . Record 1 | . . . 1 . Robot Analysis 3 | . 3 . . . Derelict Proto ID Bank 1 | . . . 1 . Fabricator Hacks . | . . . . . Repair Station Hacks . | . . . . . Recycling Unit Hacks . | . . . . . Scanalyzer . | . . . . . Garrison Access Hacks . | . . . . . Unauthorized Hacks 1 | . 1 . . . Terminals . | . . . . . Fabricators . | . . . . . Repair Stations . | . . . . . Recycling Units 1 | . 1 . . . Tunnel 1 | . 1 . . . Scanalyzers . | . . . . . Garrison Access . | . . . . . Data Cores Recovered . | . . . . . Used . | . . . . . Hacking Detections 1 | . 1 . . . Full Trace Events . | . . . . . Feedback Events . | . . . . . Feedback Blocked . | . . . . . Robot Schematics Acquired . | . . . . . Robots Built . | . . . . . Authchips . | . . . . . Time . | . . . . . Total Robot Build Rating . | . . . . . Part Schematics Acquired . | . . . . . Parts Built . | . . . . . Authchips . | . . . . . Time . | . . . . . Total Part Build Rating . | . . . . . Parts Repaired . | . . . . . Time . | . . . . . Parts Recycled . | . . . . . Recycled Matter . | . . . . . Retrieved Matter . | . . . . . Retrieved Components . | . . . . . Parts Scanalyzed . | . . . . . Part Schematics Acquired . | . . . . . Parts Damaged . | . . . . . Bothacking | -11 -10 -10 -10 -9 ------------ Run | Yrd Mat Min Exi Min Used RIF Installer . | . . . . . Robots Hacked . | . . . . . Non-combat . | . . . . . Combat . | . . . . . Robot Hacks Applied . | . . . . . Relay Couplers Released . | . . . . . Fabnet Peak Effective % . | . . . . . Robots Rewired . | . . . . . Allies Hacked . | . . . . . Hacks Repelled . | . . . . . Allies | -11 -10 -10 -10 -9 -------- Run | Yrd Mat Min Exi Min Total Allies 3 | . . 3 . . Largest Group 2 | . . 2 1 . Highest-Rated Group 62 | . . 62 31 . Highest-Rated Ally 31 | . . 31 31 . Total Orders . | . . . . . Ally Attacks 17 | . . 17 . . Total Damage 292 | . . 292 . . Kills 1 | . . 1 . . Allies Corrupted . | . . . . . Allies Melted . | . . . . . Intel | -11 -10 -10 -10 -9 ------- Run | Yrd Mat Min Exi Min Robot Analysis Total 3 | . 3 . . . Derelict Logs Recovered 2 | . . 1 . 1 Drone Launches . | . . . . . Drone Recoveries . | . . . . . Exploration | -11 -10 -10 -10 -9 ------------- Run | Yrd Mat Min Exi Min Turns Passed 1639 | 72 398 751 361 57 Spaces Moved 1024 | 46 202 433 226 117 Core 16 | 16 . . . . Treads 896 | 30 202 433 226 5 Legs . | . . . . . Wheels . | . . . . . Hover . | . . . . . Flight 112 | . . . . 112 Fastest Speed 37 | 50 160 160 160 37 Average Speed 144 | 121 160 160 160 42 Slowest Speed 160 | 160 160 160 160 160 Overloaded Moves . | . . . . . Propulsion Burnouts . | . . . . . Robots Hopped 3 | . . . . 3 Cave-ins Triggered . | . . . . . Exploration Rate (%) 45 | 4 39 93 60 33 Regions Visited 4 Branch Regions 3 Pre-discovered Areas 2 | . 1 . 1 . Known Exits Taken . | . . . . . Unknown Exits Taken 4 | 1 1 1 1 . Scrap Searched 1 | . . 1 . . Spaces Dug . | . . . . . Terrain Destroyed 11 | . . 11 . . Melee . | . . . . . Projectile . | . . . . . AOE 11 | . . 11 . . Terrain Rammed . | . . . . . Walls Destroyed . | . . . . . Machines Disabled . | . . . . . Actions | -11 -10 -10 -10 -9 --------- Run | Yrd Mat Min Exi Min Total 1109 | 59 249 456 226 119 Wait 23 | . 23 . . . Move 1015 | 45 201 432 225 112 Hop 2 | . . . . 2 Pick Up 15 | 7 4 1 1 2 Fast Attach 6 | 5 1 . . . Attach 4 | 1 . 1 . 2 Detach . | . . . . . Swap 4 | 1 2 1 . . Drop 5 | . 4 1 . . Fire 33 | . 14 18 . 1 Melee . | . . . . . Ram . | . . . . . Kick . | . . . . . Crush 2 | . . 2 . . Escape Stasis . | . . . . . Rewire . | . . . . . Trap . | . . . . . Miscellaneous . | . . . . . Route ------- -11/Scrapyard -10/Materials (discovered 2 exits: [*Mat] / [*Min]) -10/Mines (discovered 3 exits: [*Mat x2] / *Exi) -10/Exiles -9/Mines History --------- Turn | Location | Event 4 | -11/Scrapyard | Discovered new exit (range 16) 73 | -11/Scrapyard | Entered Materials 315 | -10/Materials | Build established: Mutant 381 | -10/Materials | Discovered new exit (range 16) 431 | -10/Materials | Discovered new exit (range 16) 471 | -10/Materials | Entered Mines 563 | -10/Mines | Discovered new exit (range 5) 1015 | -10/Mines | Learned location of 1 exit from Materials 1117 | -10/Mines | Met a Derelict testing a Signal Generator 1119 | -10/Mines | Discovered new exit (range 11) 1216 | -10/Mines | Deemed a non-threat by the Exiles lab entrance 1216 | -10/Mines | Discovered new exit (range 5) 1222 | -10/Mines | Entered Exiles 1222 | -10/Exiles | Accompanied by 1 ally 1252 | -10/Exiles | Led the pair of lost Derelicts to a safe place 1261 | -10/Exiles | Met 8R-AWN 1288 | -10/Exiles | Met EX-HEX 1334 | -10/Exiles | Met EX-BIN 1354 | -10/Exiles | Aligned with FarCom system 1355 | -10/Exiles | Given EX-Vault access code 1392 | -10/Exiles | Opened EX-Vault 1403 | -10/Exiles | Found 0b10 Alert Chip 1438 | -10/Exiles | Warned to stay clear of 0b10 Research branches 1483 | -10/Exiles | Met EX-DEC 1494 | -10/Exiles | Learned location of Zion (-7) 1563 | -10/Exiles | Discovered new exit (range 14) 1583 | -10/Exiles | Left Exiles lab with 0b10 Alert Chip 1583 | -10/Exiles | Entered Mines 1584 | -9/Mines | Assembled infested the area 1589 | -9/Mines | Assisted by a Guerilla fighting off Assembled 1595 | -9/Mines | Released all parts (7) 1599 | -9/Mines | Core integrity fell below 50% 1624 | -9/Mines | Learned Materials terminal intel 1640 | -9/Mines | Destroyed by D-53 Grenadier with Mini Grenade Launcher Last Messages --------------- 01595_ Released Med. Storage Unit. 01595_ Released EM Pulse Gun. 01595_ Released Lgt. Treads. 01595_ Released Heat Sink. 01595_ Released Lgt. Assault Rifle. 01595_ Released Lgt. Nuclear Core. 01596_ HV Slug penetrates as-75450. 01596_ as-75450 suffers critical hit (Destroy). 01596_ as-75450 destroyed. 01596_ YY-T17(h) destroyed. 01598_ Acquired Flight Unit. 01609_ as-36236 destroyed. 01616_ C-30 ARC bursts open, deploying its payload. 01616_ D-53 Grenadier unfolds itself. 01618_ G-47 Trooper knocked back. 01624_ Acquired derelict log, extracted data. Data stored: Materials terminal intel. 01629_ T-07 Excavator is excavating. 01638_ Flight Unit destroyed. Map ----- +----------------------------------------------------+ | ?????????????????????????????????????????????????? | | ?????????????????????????????????????????????????? | | ?????????????????????????????????????????????????? | | ?????????????????????????????????????????????????? | | ?????????????????????????????????????????????????? | | ?????????????????????????????????????????????????? | | ?????????????????????????????????????????????????? | | ?????????????????????????????????????????????????? | | ?????????????????????????????????????###?????????? | | ????????????????????????????????????# ##????????? | | ???????????????????????????????????? #????????? | | ???????????????????????????????????# #????????? | | ????????????????????#####???#???### #????????? | | ????????????????????# ###?? ### #?????????? | | ????????????????????# ##?? #??######??? | | ???????????????????## #???# #??## ##?? | | ???????????????????# ##?## #???# #?? | | ???????????????????# ## %"###???# #?? | | ???????????????????# "##????## ##? | | ???????????????????## ##???## #? | | ????????????????????#### d ##### #? | | ?????????????????????## [%= #? | | ?????????????????????# ## % ##? | | ?????????????????????# #### ### ## ##? | | ?????????????????????# #??####?####### #? | | ???????????????????### @ #????????????## #? | | ??????????????????## #???????????## ##? | | ????????????????### d #???????????# ##?? | | ???????????????## g ###???????????# #??? | | ???????????????# ###?????????????## #??? | | ????????g?????## ## #????????????????# #??? | | ?????????????## ### #???????????????## ##??? | | ????????????## ###g#######?????????# ##???? | | ????????????# l #?????????# #????? | | ????????????# g #?????????## #????? | | ????????????## ######## #??????????# #????? | | ?????????????#### ##????# #??????????# #????? | | ????????????????## ##?? #?????????# #????? | | ?????????????????# #?# """#?????????# #????? | | ?????????????????# #?# """#?????????# ###### | | ?????????????????# #?# """#?????????# | | ????????????????## ##?# """#?????????#[ ###### | | ????????????????# #??# #??????#### =#????? | | ???????????????## ##?#####???????## !![[##???? | | ???????????????# #????????????##! !*= #???? | | ???????????????# #????????????#!%= * #???? | | ???????????????## ##????????????# = ##???? | | ????????????????## #????????????## =##????? | | ?????????????????#### #?????????????# /= #?????? | | ????????????????????? #?????????????## ##?????? | +----------------------------------------------------+ Best States ------------- Heat Dissipation 35 Energy Generation 14 Energy Capacity 250 Matter Stores 300 Matter Capacity 450 Sight Range 16 Terrain Scan Density 10 Evasion (%) 62 Recoil Reduction 2 Item Schematics ----------------- None Robot Schematics ------------------ None Fabricated ------------ Nothing Alien Tech Used ----------------- None Achievements -------------- None Challenges ------------ None Game ------ Seed ChipStasisAnalyzer Manual? 0 Play Time 00:09:53 Cumulative 263.9 hours Start 2024.04.24 @ 22:22:41 End 2024.04.24 @ 22:31:03 Sessions 1 Manual Loads 0 Difficulty Rogue Special Mode None Game No. 200 Rogue 200 Adventurer 0 Explorer 0 Win Type - Total 8 Types 6/0/1/1/0/0/0/0/0 Lore% 76 Gallery% 83 Achievement% 69 Wizard Run 0 Options --------- Layout 2 ASCII 1 Keyboard 0 Movement Mouse Keybinds 0 Fullscreen 2 Font 24/Smallcaps Map View 50x44 Zoom Use 0% Tactical HUD 1 Map Filters NONE Filters NONE Steam 1 RUN: 1577ed1c-02f4-4f7d-b6e8-54e6375bc656